fUSD/lending_fUSD_20251228
["ID","MTS","AMOUNT","RATE_DAILY","PERIOD"]
[399970570,1766956248340,-25000.0,0.00016882,3]
[399970571,1766956248352,-150.0,0.00016883,2]
[399970572,1766956248361,-150.0,0.00016889,2]
[399970573,1766956248370,-627.0,0.00016891,2]
[399970574,1766956248379,-25000.0,0.00016891,3]
[399970575,1766956248388,-500.0,0.00016899,2]
[399970576,1766956248397,-500.0,0.00016899,2]
[399970577,1766956248407,-173.02989345,0.000169,2]
[399970578,1766956248415,-25000.0,0.000169,3]
[399970579,1766956248425,-13782.6686223,0.000169,2]
[399970580,1766956248434,-11017.15653623,0.000169,2]
[399970581,1766956248443,-1000.0,0.000169,2]
[399970582,1766956248452,-157.28739986,0.000169,2]
[399970583,1766956248461,-1607.9,0.00016903,2]
[399970584,1766956248471,-150.0,0.00016904,2]
[399970585,1766956248481,-150.0,0.00016905,2]
[399970586,1766956248490,-150.0,0.00016912,2]
[399970587,1766956248499,-150.0,0.00016912,2]
[399970588,1766956248511,-627.0,0.00016918,2]
[399970589,1766956248521,-150.0,0.00016932,2]
[399970590,1766956248531,-150.0,0.00016933,2]
[399970591,1766956248542,-150.0,0.00016935,2]
[399970592,1766956248550,-150.0,0.00016938,2]
[399970593,1766956248560,-627.0,0.00016946,2]
[399970594,1766956248569,-150.0,0.00016949,2]
[399970595,1766956248579,-1607.9,0.00016951,2]
[399970596,1766956248588,-150.0,0.00016959,2]
[399970597,1766956248598,-1000.0,0.0001697,2]
[399970598,1766956248608,-1000.0,0.0001697,2]
[399970599,1766956248618,-1000.0,0.0001697,2]
[399970600,1766956248627,-1000.0,0.0001697,2]
[399970601,1766956248637,-350.51,0.0001697,2]
[399970602,1766956248647,-1000.0,0.0001697,2]
[399970603,1766956248656,-1000.0,0.0001697,2]
[399970604,1766956248665,-1000.0,0.0001697,2]
[399970605,1766956248674,-768.217,0.0001697,2]
[399970606,1766956248683,-535.446302,0.0001697,2]
[399970607,1766956248693,-535.446302,0.0001697,2]
[399970608,1766956248706,-535.446302,0.0001697,2]
[399970609,1766956248715,-535.446302,0.0001697,2]
[399970610,1766956248724,-151.0,0.0001697,2]
[399970611,1766956248734,-151.0,0.0001697,2]
[399970612,1766956248743,-151.0,0.0001697,2]
[399970613,1766956248752,-150.11199507,0.00016973,2]
[399970614,1766956248762,-627.0,0.00016973,2]
[399970615,1766956248771,-200.0,0.00016973,2]
[399970616,1766956248781,-255.0,0.00016984,2]
[399970617,1766956248790,-500.0,0.00016986,2]
[399970618,1766956248799,-31952.41,0.00016986,2]
[399970619,1766956248809,-291.19227716,0.00016986,2]
[399970620,1766956248818,-261.52919059,0.00016986,2]
[399970621,1766956248827,-193.20504799,0.00016986,2]
[399970622,1766956248837,-298.68946488,0.00016986,2]
[399970623,1766956248847,-204.47837642,0.00016986,2]
[399970624,1766956248856,-159.10391865,0.00016986,2]
[399970625,1766956248867,-257.38593742,0.00016986,2]
[399970626,1766956248876,-288.29142727,0.00016986,2]
[399970627,1766956248886,-191.18737209,0.00016986,2]
[399970628,1766956248895,-157.03567619,0.00016986,2]
[399970629,1766956248907,-156.10987043,0.00016986,2]
[399970630,1766956248917,-172.24524014,0.00016986,2]
[399970631,1766956248926,-273.23141721,0.00016986,2]
[399970632,1766956248936,-266.31997745,0.00016986,2]
[399970633,1766956248946,-1018.78557236,0.00016999,5]
[399970634,1766956248955,-1067.95132777,0.00016999,5]
[399970635,1766956248964,-300.0,0.00016999,2]
[399970636,1766956248974,-300.0,0.00016999,2]
[399970637,1766956248983,-300.0,0.00016999,2]
[399970638,1766956248992,-500.0,0.00016999,2]
[399970639,1766956249001,-500.0,0.00016999,2]
[399970640,1766956249010,-500.0,0.00016999,2]
[399970641,1766956249020,-193.237428,0.00016999,2]
[399970642,1766956249029,-300.0,0.00016999,2]
[399970643,1766956249039,-300.0,0.00016999,2]
[399970644,1766956249048,-500.0,0.00016999,2]
[399970645,1766956249058,-500.0,0.00016999,2]
[399970646,1766956249067,-500.0,0.00016999,2]
[399970647,1766956249077,-464.2399143,0.00016999,2]
[399970648,1766956249086,-666.0,0.00016999,2]
[399970649,1766956249095,-300.0,0.00016999,2]
[399970650,1766956249104,-300.0,0.00016999,2]
[399970651,1766956249113,-1495151.59976773,0.00017,2]
[399970652,1766956249122,-543188.78685184,0.00017,2]
[399970653,1766956249299,-564.67956982,0.00017,2]
[399970654,1766956249635,-151.0,0.00015049,2]
[399970655,1766956249645,-148.99,0.00015796,2]
[399970656,1766956249661,-4796.52507576,0.00015796,2]
[399970657,1766956324624,1043.36845007,0.0001359,3]
[399970658,1766956538485,1450.904,0.00013319,2]
[399970659,1766956538540,178.125,0.00013319,2]
[399970660,1766956707566,168.38,0.00010735,2]
[399970661,1766956789632,5527.0,0.000142,5]
[399970662,1766956789863,5527.0,0.000137,3]
[399970663,1766956820716,5527.0,0.000141,5]
[399970664,1766956820949,5527.0,0.000136,3]
[399970665,1766956821174,6556.0,0.000132,2]
[399970666,1766956828211,166.66,0.00012329,2]
[399970667,1766956828410,166.66,0.0001257,2]
[399970668,1766956828641,166.66,0.00012811,2]
[399970669,1766956828832,166.66,0.00013052,2]
[399970670,1766956829061,166.66,0.00013293,2]
[399970672,1766956964846,151.76506095,0.00013378,2]
[399970682,1766957267116,172.0,0.00030137,120]
[399970683,1766957274302,151.76506093,0.00013389,2]
[399970687,1766957298583,1000000.0,0.00013391,2]
[399970691,1766957345237,166.67,0.00013153,2]
[399970692,1766957347357,5102.30663022,0.00013391,2]
[399970693,1766957347423,3874.97124849,0.00013391,2]
[399970694,1766957347460,280.44326248,0.00013391,2]
[399970729,1766957431797,-250.0,0.00013439,2]
[399970731,1766957431807,-300.0,0.00013445,2]
[399970732,1766957431817,-1880.08348929,0.00013467,2]
[399970733,1766957431828,-394.17718249,0.00013467,2]
[399970734,1766957431838,-527.69098567,0.00013467,2]
[399970735,1766957432068,-588.05522917,0.00013467,2]
[399970736,1766957432200,-150.90278871,0.00013467,2]
[399970737,1766957432210,-300.0,0.00013487,2]
[399970738,1766957432219,-151.76506093,0.00013488,2]
[399970739,1766957432233,-398.32215036,0.00013488,2]
[399970740,1766957432244,-646.62018074,0.00013488,2]
[399970741,1766957432257,-155.0576689,0.00013488,2]
[399970742,1766957432266,-252.69217809,0.00013488,2]
[399970743,1766957432292,-47.30782191,0.00013488,2]
[399970744,1766957432302,-413.86579411,0.00013488,2]
[399970745,1766957432365,-786.13420589,0.00013488,2]
[399970746,1766957432374,-300.0,0.00013488,2]
[399970747,1766957432384,-273.1107,0.00013489,2]
[399970748,1766957432393,-1523.45,0.0001349,2]
[399970749,1766957432402,-178.125,0.0001349,2]
[399970750,1766957432668,-598.1602,0.0001349,2]
[399970751,1766957432677,-129.95335819,0.00013491,2]
[399970752,1766957432689,-150.09517981,0.00013491,2]
[399970753,1766957432698,-2500.0,0.00013491,2]
[399970754,1766957432707,-414.0,0.000135,2]
[399970755,1766957432717,-166.66,0.00013535,2]
[399970756,1766957432725,-4475.0495,0.00013562,2]
[399970757,1766957432737,-150.0,0.00013582,2]
[399970758,1766957432746,-201.23401647,0.00013583,2]
[399970759,1766957432756,-200.0,0.00013583,2]
[399970760,1766957432766,-500.0,0.00013583,2]
[399970761,1766957432775,-200.0,0.00013583,2]
[399970762,1766957432785,-151.0,0.00013583,2]
[399970763,1766957432794,-151.0,0.00013583,2]
[399970764,1766957432803,-151.0,0.00013583,2]
[399970765,1766957432812,-151.0,0.00013583,2]
[399970766,1766957432821,-151.0,0.00013583,2]
[399970767,1766957432831,-151.0,0.00013583,2]
[399970768,1766957432840,-151.0,0.00013583,2]
[399970769,1766957432849,-151.0,0.00013583,2]
[399970770,1766957432859,-151.0,0.00013583,2]
[399970771,1766957432869,-151.0,0.00013583,2]
[399970772,1766957432878,-151.0,0.00013583,2]
[399970773,1766957432888,-151.0,0.00013583,2]
[399970774,1766957432897,-151.0,0.00013583,2]
[399970775,1766957432907,-151.0,0.00013583,2]
[399970776,1766957432920,-151.0,0.00013583,2]
[399970777,1766957432930,-151.0,0.00013583,2]
[399970778,1766957432940,-151.0,0.00013583,2]
[399970779,1766957432949,-151.0,0.00013583,2]
[399970780,1766957432958,-151.0,0.00013583,2]
[399970781,1766957432967,-151.0,0.00013583,2]
[399970782,1766957432976,-151.0,0.00013583,2]
[399970783,1766957432985,-151.0,0.00013583,2]
[399970784,1766957432995,-151.0,0.00013583,2]
[399970785,1766957433005,-151.0,0.00013583,2]
[399970786,1766957433014,-151.0,0.00013583,2]
[399970787,1766957433024,-151.0,0.00013583,2]
[399970788,1766957433034,-151.0,0.00013583,2]
[399970789,1766957433043,-153.70166196,0.00013583,2]
[399970790,1766957433052,-153.05051893,0.0001359,2]
[399970791,1766957433062,-1707.45,0.0001359,2]
[399970792,1766957433071,-715.37431108,0.0001359,2]
[399970793,1766957433081,-500.0,0.0001359,2]
[399970794,1766957433090,-33520.8529,0.00013691,2]
[399970795,1766957433100,-1000.0,0.00013691,2]
[399970796,1766957433112,-546.9592126,0.00013698,2]
[399970797,1766957433122,-500.0,0.00013698,2]
[399970798,1766957433131,-500.0,0.00013698,2]
[399970799,1766957433141,-500.0,0.00013698,2]
[399970800,1766957433150,-500.0,0.00013698,2]
[399970801,1766957433160,-500.0,0.00013698,2]
[399970802,1766957433170,-500.0,0.00013698,2]
[399970803,1766957433180,-500.0,0.00013698,2]
[399970804,1766957433189,-500.0,0.00013698,2]
[399970805,1766957433199,-500.0,0.00013698,2]
[399970806,1766957433209,-500.0,0.00013698,2]
[399970807,1766957433219,-500.0,0.00013698,2]
[399970808,1766957433230,-500.0,0.00013698,2]
[399970809,1766957433240,-500.0,0.00013698,2]
[399970810,1766957433250,-306.29015372,0.00013698,2]
[399970811,1766957433260,-500.0,0.00013698,2]
[399970812,1766957433269,-500.0,0.00013698,2]
[399970813,1766957433278,-500.0,0.00013698,2]
[399970814,1766957433287,-500.0,0.00013698,2]
[399970815,1766957433297,-500.0,0.00013698,2]
[399970816,1766957433310,-649.44280484,0.00013698,2]
[399970817,1766957433320,-500.0,0.00013698,2]
[399970818,1766957433330,-500.0,0.00013698,2]
[399970819,1766957433338,-500.0,0.00013698,2]
[399970820,1766957433347,-500.0,0.00013698,2]
[399970821,1766957433357,-500.0,0.00013698,2]
[399970822,1766957433367,-500.0,0.00013698,2]
[399970823,1766957433376,-552.54951057,0.00013698,2]
[399970824,1766957433385,-501.94875772,0.00013698,2]
[399970825,1766957433394,-500.0,0.00013698,2]
[399970826,1766957433404,-500.0,0.00013698,2]
[399970827,1766957433413,-500.0,0.00013698,2]
[399970828,1766957433423,-500.0,0.00013698,2]
[399970829,1766957433431,-500.0,0.00013698,2]
[399970830,1766957433441,-500.0,0.00013698,2]
[399970831,1766957433451,-500.0,0.00013698,2]
[399970832,1766957433461,-500.0,0.00013698,2]
[399970833,1766957433471,-562.55426662,0.00013698,2]
[399970834,1766957433480,-500.0,0.00013698,2]
[399970835,1766957433489,-500.0,0.00013698,2]
[399970836,1766957433497,-500.0,0.00013698,2]
[399970837,1766957433509,-500.0,0.00013698,2]
[399970838,1766957433519,-500.0,0.00013698,2]
[399970839,1766957433528,-500.0,0.00013698,2]
[399970840,1766957433538,-500.0,0.00013698,2]
[399970841,1766957433549,-500.0,0.00013698,2]
[399970842,1766957433559,-671.78,0.00013699,2]
[399970843,1766957433570,-1707.45,0.00013864,2]
[399970844,1766957433581,-500.0,0.00013864,2]
[399970845,1766957433590,-166.67,0.00013876,2]
[399970846,1766957433600,-24872.11077071,0.00013881,2]
[399970847,1766957433613,-17333.21906213,0.00013881,2]
[399970848,1766957433622,-567.42279495,0.00013931,2]
[399970849,1766957433631,-25741.79258367,0.0001399,2]
[399970850,1766957433643,-1254.41808677,0.0001399,2]
[399970851,1766957433653,-6815.12586,0.0001399,2]
[399970863,1766957437582,-658.47843359,0.00013491,2]
[399970864,1766957437597,-20724.17226292,0.00013491,2]
[399970865,1766957437639,-12138.20220349,0.00013491,2]
[399970866,1766957437649,-500.0,0.0001388,2]
[399970867,1766957437660,-366.80779647,0.0001388,2]
[399970868,1766957437697,-133.19220353,0.0001388,2]
[399970870,1766957437706,-500.0,0.0001388,2]
[399970872,1766957437716,-323.07870325,0.0001388,2]
[399970873,1766957437725,-500.0,0.0001388,2]
[399970875,1766957437737,-500.0,0.0001388,2]
[399970877,1766957437746,-500.0,0.0001388,2]
[399970879,1766957437754,-500.0,0.0001388,2]
[399970880,1766957437763,-500.0,0.0001388,2]
[399970882,1766957437773,-500.0,0.0001388,2]
[399970884,1766957437783,-500.0,0.0001388,2]
[399970885,1766957437792,-500.0,0.0001388,2]
[399970887,1766957437801,-500.0,0.0001388,2]
[399970889,1766957437813,-500.0,0.0001388,2]
[399970891,1766957437822,-500.0,0.0001388,2]
[399970893,1766957437831,-500.0,0.0001388,2]
[399970895,1766957437840,-500.0,0.0001388,2]
[399970897,1766957437849,-500.0,0.0001388,2]
[399970899,1766957437858,-500.0,0.0001388,2]
[399970901,1766957437867,-153.60329287,0.0001388,2]
[399970902,1766957437876,-500.0,0.0001388,2]
[399970904,1766957437885,-500.0,0.0001388,2]
[399970906,1766957437894,-500.0,0.0001388,2]
[399970908,1766957437903,-500.0,0.0001388,2]
[399970910,1766957437912,-500.0,0.0001388,2]
[399970912,1766957437921,-500.0,0.0001388,2]
[399970914,1766957437930,-500.0,0.0001388,2]
[399970916,1766957437939,-19603.31151033,0.0001399,2]
[399970918,1766957437950,-639.8168967,0.0001399,2]
[399970932,1766957439611,-72653.46292799,0.0001399,2]
[399970933,1766957439620,-200.0,0.00014131,2]
[399970934,1766957439629,-504.00666552,0.00014131,2]
[399970935,1766957439638,-1707.45,0.00014138,2]
[399970936,1766957439647,-500.0,0.00014138,2]
[399970937,1766957439657,-567.42279492,0.00014355,2]
[399970938,1766957439666,-8597.9647409,0.0001439,2]
[399970939,1766957439675,-1707.45,0.00014412,2]
[399970940,1766957439684,-500.0,0.00014412,2]
[399970941,1766957439693,-153.05051892,0.00014418,2]
[399970942,1766957439702,-921.24151514,0.00014422,2]
[399970943,1766957439711,-178.0,0.00014443,2]
[399970944,1766957439719,-224.28186878,0.00014573,2]
[399970945,1766957439728,-500.0,0.00014573,2]
[399970946,1766957439742,-500.0,0.00014573,2]
[399970947,1766957439751,-500.0,0.00014573,2]
[399970948,1766957439760,-536.24942027,0.00014573,2]
[399970949,1766957439769,-500.0,0.00014573,2]
[399970950,1766957439779,-500.0,0.00014573,2]
[399970951,1766957439788,-538.18007522,0.00014573,2]
[399970952,1766957439797,-500.0,0.00014573,2]
[399970953,1766957439807,-500.0,0.00014573,2]
[399970954,1766957439816,-500.14010989,0.00014573,2]
[399970955,1766957439825,-157.13520198,0.00014573,2]
[399970956,1766957439834,-169.46577369,0.00014573,2]
[399970957,1766957439843,-500.0,0.00014573,2]
[399970958,1766957439852,-500.0,0.00014573,2]
[399970959,1766957439861,-500.0,0.00014573,2]
[399970960,1766957439870,-500.0,0.00014573,2]
[399970961,1766957439879,-162.19608931,0.00014573,2]
[399970962,1766957439888,-165.96450787,0.00014573,2]
[399970963,1766957439897,-500.5153804,0.00014573,2]
[399970964,1766957439906,-168.76953006,0.00014573,2]
[399970965,1766957439915,-500.0,0.00014573,2]
[399970966,1766957439924,-305.00383529,0.00014573,2]
[399970967,1766957439933,-500.0,0.00014573,2]
[399970968,1766957439942,-500.0,0.00014573,2]
[399970969,1766957439951,-500.0,0.00014573,2]
[399970970,1766957439962,-500.0,0.00014573,2]
[399970971,1766957439972,-484.98892147,0.00014573,2]
[399970972,1766957439982,-500.0,0.00014573,2]
[399970973,1766957439992,-500.0,0.00014573,2]
[399970974,1766957440003,-500.0,0.00014573,2]
[399970975,1766957440013,-500.0,0.00014573,2]
[399970976,1766957440023,-500.0,0.00014573,2]
[399970977,1766957440033,-437.57390351,0.00014573,2]
[399970978,1766957440042,-500.0,0.00014573,2]
[399970979,1766957440053,-500.0,0.00014573,2]
[399970980,1766957440062,-500.0,0.00014573,2]
[399970982,1766957440071,-163.02384966,0.00014573,2]
[399970984,1766957440081,-235.96212979,0.00014573,2]
[399970986,1766957440090,-493.48874746,0.0001458,2]
[399970988,1766957440099,-166.67,0.000146,2]
[399970990,1766957440108,-153.0,0.00014609,2]
[399970991,1766957440118,-153.0,0.00014609,2]
[399970993,1766957440127,-200.0,0.00014679,2]
[399970995,1766957440138,-922.88372494,0.00014682,2]
[399970996,1766957440147,-1707.45,0.00014686,2]
[399970997,1766957440156,-500.0,0.00014686,2]
[399970998,1766957440166,-255.0,0.00014696,2]
[399970999,1766957440175,-250.0,0.00014777,2]
[399971000,1766957440185,-195.0,0.00014777,2]
[399971002,1766957440194,-300.0,0.00014777,2]
[399971003,1766957440203,-300.0,0.00014777,2]
[399971005,1766957440212,-300.0,0.00014777,2]
[399971007,1766957440222,-300.0,0.00014777,2]
[399971009,1766957440231,-300.0,0.00014777,2]
[399971010,1766957440240,-198.31759794,0.00014777,2]
[399971011,1766957440249,-250.0,0.00014777,2]
[399971012,1766957440259,-195.0,0.00014777,2]
[399971013,1766957440269,-600.0,0.00014777,2]
[399971014,1766957440278,-600.0,0.00014777,2]
[399971015,1766957440287,-600.0,0.00014777,2]
[399971016,1766957440297,-600.0,0.00014777,2]
[399971017,1766957440306,-163.03184917,0.00014777,2]
[399971018,1766957440315,-2647.72567104,0.00014777,2]
[399971019,1766957440325,-193.0,0.00014777,2]
[399971020,1766957440334,-567.42279492,0.00014779,2]
[399971021,1766957440343,-195.0,0.00014783,2]
[399971022,1766957440352,-195.0,0.00014783,2]
[399971023,1766957440362,-1200.0,0.00014785,2]
[399971025,1766957440371,-420.0,0.00014785,2]
[399971027,1766957440380,-420.0,0.00014785,2]
[399971029,1766957440388,-1680.0,0.00014837,2]
[399971031,1766957440397,-14454.57632851,0.000149,2]
[399971033,1766957440406,-500.0,0.0001496,2]
[399971035,1766957440415,-1707.45,0.0001496,2]
[399971036,1766957440423,-5014.92,0.00014999,2]
[399971038,1766957440432,-2042.52030711,0.00015,2]
[399971039,1766957440441,-21378.21540369,0.00015,2]
[399971040,1766957440450,-1155.76996984,0.00015,2]
[399971041,1766957440460,-33612.87900818,0.00015,2]
[399971042,1766957440469,-154.03,0.00015088,2]
[399971043,1766957440479,-632.38992075,0.00015121,2]
[399971044,1766957440488,-500.81919324,0.00015121,2]
[399971045,1766957440498,-1000.0,0.00015121,2]
[399971046,1766957440507,-1000.0,0.00015121,2]
[399971047,1766957440516,-1000.85459949,0.00015121,2]
[399971048,1766957440526,-1000.51013306,0.00015121,2]
[399971049,1766957440536,-1000.0,0.00015121,2]
[399971050,1766957440547,-825.46719088,0.00015121,2]
[399971051,1766957440557,-1000.0,0.00015121,2]
[399971052,1766957440566,-1000.0,0.00015121,2]
[399971053,1766957440575,-1133.29597512,0.00015121,2]
[399971054,1766957440585,-1000.0,0.00015121,2]
[399971055,1766957440593,-1000.0,0.00015121,2]
[399971056,1766957440603,-645.49615289,0.00015121,2]
[399971057,1766957440612,-1000.0,0.00015121,2]
[399971058,1766957440621,-367.26456673,0.00015121,2]
[399971059,1766957440842,-1000.0,0.00015121,2]
[399971060,1766957440851,-1000.0,0.00015121,2]
[399971061,1766957440861,-1000.0,0.00015121,2]
[399971062,1766957440870,-1000.0,0.00015121,2]
[399971063,1766957440879,-500.0,0.00015121,2]
[399971064,1766957440888,-1000.0,0.00015121,2]
[399971065,1766957440897,-1000.0,0.00015121,2]
[399971066,1766957440906,-14454.57632848,0.00015122,2]
[399971067,1766957440915,-567.42279492,0.00015203,2]
[399971068,1766957440924,-200.0,0.00015227,2]
[399971069,1766957440933,-500.0,0.00015234,2]
[399971070,1766957440942,-1707.45,0.00015234,2]
[399971071,1766957440952,-153.05051892,0.00015245,2]
[399971072,1766957440961,-1600.0,0.00015253,2]
[399971073,1766957440971,-150.0,0.00015288,2]
[399971074,1766957440980,-150.0,0.00015288,2]
[399971075,1766957440989,-150.0,0.00015288,2]
[399971076,1766957440998,-298.69511274,0.00015288,2]
[399971077,1766957441007,-150.0,0.00015288,2]
[399971078,1766957441017,-150.0,0.00015288,2]
[399971079,1766957441026,-150.0,0.00015288,2]
[399971080,1766957441035,-150.0,0.00015288,2]
[399971081,1766957441044,-150.0,0.00015288,2]
[399971082,1766957441054,-150.0,0.00015288,2]
[399971083,1766957441063,-150.0,0.00015288,2]
[399971084,1766957441073,-150.0,0.00015288,2]
[399971085,1766957441083,-150.0,0.00015288,2]
[399971086,1766957441092,-150.0,0.00015288,2]
[399971087,1766957441101,-150.0,0.00015288,2]
[399971088,1766957441110,-1517.64,0.000153,2]
[399971089,1766957441119,-150.0,0.00015315,2]
[399971090,1766957441128,-166.67,0.00015323,2]
[399971091,1766957441138,-150.0,0.00015325,2]
[399971092,1766957441147,-150.0,0.00015336,2]
[399971093,1766957441157,-150.0,0.00015339,2]
[399971094,1766957441166,-150.0,0.00015341,2]
[399971095,1766957441176,-150.0,0.00015342,2]
[399971096,1766957441185,-14454.57632848,0.00015344,2]
[399971097,1766957441194,-150.0,0.00015362,2]
[399971098,1766957441203,-150.0,0.00015362,2]
[399971099,1766957441212,-150.0,0.00015369,2]
[399971100,1766957441222,-150.0,0.0001537,2]
[399971101,1766957441231,-150.0,0.00015385,2]
[399971102,1766957441240,-150.0,0.00015391,2]
[399971103,1766957441249,-150.0,0.00015394,2]
[399971104,1766957441258,-150.0,0.00015397,2]
[399971105,1766957441267,-150.0,0.00015398,2]
[399971106,1766957441277,-506.31384754,0.000154,2]
[399971107,1766957441286,-150.0,0.00015401,2]
[399971108,1766957441295,-150.0,0.00015425,2]
[399971109,1766957441304,-150.0,0.00015433,2]
[399971110,1766957441314,-150.0,0.00015435,2]
[399971111,1766957441323,-150.0,0.00015435,2]
[399971112,1766957441332,-150.0,0.00015442,2]
[399971113,1766957441341,-150.0,0.00015442,2]
[399971114,1766957441349,-150.0,0.00015447,2]
[399971115,1766957441359,-150.0,0.00015449,2]
[399971116,1766957441368,-150.0,0.00015452,2]
[399971117,1766957441377,-150.0,0.00015458,2]
[399971118,1766957441386,-150.0,0.00015472,2]
[399971119,1766957441395,-150.0,0.00015479,2]
[399971120,1766957441404,-10027.13268045,0.0001548,2]
[399971121,1766957441413,-150.0,0.00015482,2]
[399971122,1766957441422,-150.0,0.00015494,2]
[399971123,1766957441431,-150.0,0.000155,2]
[399971124,1766957441440,-150.0,0.000155,2]
[399971125,1766957441449,-150.0,0.00015507,2]
[399971126,1766957441458,-500.0,0.00015508,2]
[399971127,1766957441467,-1707.45,0.00015508,2]
[399971128,1766957441478,-150.0,0.00015509,2]
[399971129,1766957441487,-150.0,0.00015509,2]
[399971130,1766957441496,-150.0,0.00015514,2]
[399971131,1766957441505,-150.0,0.0001553,2]
[399971132,1766957441514,-150.0,0.0001553,2]
[399971133,1766957441523,-150.0,0.00015534,2]
[399971134,1766957441533,-150.0,0.00015545,2]
[399971135,1766957441542,-150.0,0.00015546,2]
[399971136,1766957441551,-150.0,0.00015553,2]
[399971137,1766957441561,-150.0,0.00015562,2]
[399971138,1766957441570,-14454.57632848,0.00015567,2]
[399971139,1766957441580,-150.0,0.00015579,2]
[399971140,1766957441590,-150.0,0.00015583,2]
[399971141,1766957441600,-150.0,0.00015583,2]
[399971142,1766957441609,-150.0,0.00015589,2]
[399971143,1766957441618,-150.0,0.00015597,2]
[399971144,1766957441629,-150.0,0.00015597,2]
[399971145,1766957441639,-150.0,0.00015606,2]
[399971146,1766957441648,-150.0,0.00015611,2]
[399971147,1766957441659,-150.0,0.00015616,2]
[399971148,1766957441668,-150.0,0.0001562,2]
[399971149,1766957441678,-150.0,0.00015627,2]
[399971150,1766957441688,-150.0,0.00015627,2]
[399971151,1766957441698,-150.0,0.00015627,2]
[399971152,1766957441707,-567.42279492,0.00015628,2]
[399971153,1766957441717,-150.0,0.00015644,2]
[399971154,1766957441727,-150.0,0.00015648,2]
[399971155,1766957441741,-150.0,0.00015657,2]
[399971156,1766957441751,-150.0,0.00015657,2]
[399971157,1766957441761,-150.0,0.00015659,2]
[399971158,1766957441771,-151.0,0.00015665,2]
[399971159,1766957441782,-941.4218678,0.00015668,2]
[399971160,1766957441792,-1500.0,0.00015668,2]
[399971161,1766957441804,-1500.0,0.00015668,2]
[399971162,1766957441816,-1500.0,0.00015668,2]
[399971163,1766957441826,-1500.0,0.00015668,2]
[399971164,1766957441836,-1007.4808143,0.00015668,2]
[399971165,1766957441845,-1074.4149174,0.00015668,2]
[399971166,1766957441854,-1254.67001786,0.00015668,2]
[399971167,1766957441863,-1500.0,0.00015668,2]
[399971168,1766957441872,-1500.0,0.00015668,2]
[399971169,1766957441881,-501.70391837,0.00015668,2]
[399971170,1766957441890,-1500.0,0.00015668,2]
[399971171,1766957441900,-634.28770415,0.00015668,2]
[399971172,1766957441909,-1500.0,0.00015668,2]
[399971173,1766957441919,-150.0,0.00015671,2]
[399971174,1766957441928,-150.0,0.00015676,2]
[399971175,1766957441937,-150.0,0.00015692,2]
[399971176,1766957441947,-150.0,0.00015694,2]
[399971177,1766957441956,-150.0,0.00015699,2]
[399971178,1766957441965,-150.0,0.00015699,2]
[399971179,1766957441974,-150.0,0.00015712,2]
[399971180,1766957441984,-150.0,0.00015712,2]
[399971181,1766957441993,-150.0,0.00015724,2]
[399971182,1766957442002,-150.0,0.00015726,2]
[399971183,1766957442011,-150.0,0.00015731,2]
[399971184,1766957442021,-150.0,0.00015731,2]
[399971185,1766957442030,-150.0,0.00015741,2]